fUSD/lending_fUSD_20251123
["ID","MTS","AMOUNT","RATE_DAILY","PERIOD"]
[394744830,1763925052221,-922.02,0.00038356,8]
[394744832,1763925052231,-597.99,0.00038356,8]
[394744834,1763925052240,-500.0,0.00038356,8]
[394744836,1763925052249,-500.0,0.00038356,8]
[394744838,1763925052259,-787.62,0.00038356,8]
[394744840,1763925052268,-500.0,0.00038356,8]
[394744842,1763925052277,-500.0,0.00038356,8]
[394744844,1763925052286,-683.38,0.00038356,8]
[394744846,1763925052295,-500.0,0.00038356,8]
[394744848,1763925052305,-573.75,0.00038356,8]
[394744850,1763925052315,-2004.08,0.00038356,8]
[394744852,1763925052324,-691.36,0.00038356,8]
[394744854,1763925052333,-500.0,0.00038356,8]
[394744856,1763925052342,-499.57136379,0.00038356,8]
[394744858,1763925052351,-500.0,0.00038356,8]
[394744860,1763925052360,-500.0,0.00038356,8]
[394744862,1763925052370,-500.0,0.00038356,8]
[394744864,1763925052379,-543.55,0.00038356,8]
[394744866,1763925052388,-500.0,0.00038356,8]
[394744868,1763925052398,-832.88,0.00038356,8]
[394744870,1763925052407,-500.0,0.00038356,8]
[394744872,1763925052416,-2047.9,0.00038356,8]
[394744874,1763925052425,-500.0,0.00038356,8]
[394744876,1763925052434,-500.0,0.00038356,8]
[394744878,1763925052444,-500.0,0.00038356,8]
[394744880,1763925052453,-500.0,0.00038356,8]
[394744882,1763925052462,-592.88,0.00038356,8]
[394744884,1763925052471,-500.0,0.00038356,8]
[394744886,1763925052480,-500.0,0.00038356,8]
[394744888,1763925052489,-500.0,0.00038356,8]
[394744890,1763925052499,-500.0,0.00038356,8]
[394744892,1763925052509,-359.50539477,0.00038356,8]
[394744894,1763925052518,-500.0,0.00038356,8]
[394744896,1763925052527,-620.81,0.00038356,8]
[394744898,1763925052536,-500.0,0.00038356,8]
[394744900,1763925052545,-500.0,0.00038356,8]
[394744902,1763925052555,-500.0,0.00038356,8]
[394744904,1763925052564,-797.43,0.00038356,8]
[394744906,1763925052573,-486.3981757,0.00038356,8]
[394744911,1763925052608,-13.6018243,0.00038356,8]
[394744913,1763925052616,-500.0,0.00038356,8]
[394744914,1763925052625,-944.36,0.00038356,8]
[394744916,1763925052635,-1320.6,0.00038356,8]
[394744918,1763925052644,-500.0,0.00038356,8]
[394744920,1763925052654,-336.47891306,0.00038356,8]
[394744922,1763925052663,-500.0,0.00038356,8]
[394744924,1763925052672,-242.67117349,0.00038356,8]
[394744929,1763925052703,-257.32882651,0.00038356,8]
[394744930,1763925052711,-500.0,0.00038356,8]
[394744933,1763925052724,-500.0,0.00038356,8]
[394744935,1763925052734,-18.56233514,0.00038356,8]
[394744938,1763925052756,-481.43766486,0.00038356,8]
[394744940,1763925052766,-500.0,0.00038356,8]
[394744942,1763925052775,-500.0,0.00038356,8]
[394744944,1763925052785,-605.46678083,0.00038356,8]
[394744946,1763925052794,-500.0,0.00038356,8]
[394744948,1763925052803,-500.0,0.00038356,8]
[394744950,1763925052812,-500.0,0.00038356,8]
[394744952,1763925052822,-500.0,0.00038356,8]
[394744954,1763925052831,-500.0,0.00038356,8]
[394744956,1763925052840,-500.0,0.00038356,8]
[394744958,1763925052849,-500.0,0.00038356,8]
[394744960,1763925052859,-500.0,0.00038356,8]
[394744962,1763925052868,-1239.74,0.00038356,8]
[394744964,1763925052877,-500.0,0.00038356,8]
[394744966,1763925052887,-500.0,0.00038356,8]
[394744968,1763925052897,-416.39115757,0.00038356,8]
[394745285,1763925138910,186.00565985,0.00017,30]
[394745286,1763925140295,500.0,0.00017,30]
[394745287,1763925140645,948.96980975,0.000165,30]
[394745303,1763926114918,2017.49182536,0.00016,4]
[394745304,1763926114942,2017.49182536,0.00016,4]
[394745305,1763926114966,2017.49182536,0.00016,4]
[394745306,1763926114995,2017.49182536,0.00016,4]
[394745307,1763926115019,1930.04269856,0.00016,4]
[394745365,1763926231670,-1861.86,0.00016755,2]
[394745366,1763926231696,-3894.194847,0.00016755,2]
[394745367,1763926231705,-195.0,0.0001684,2]
[394745368,1763926231716,-308.0,0.0001684,2]
[394745369,1763926231725,-508.51899884,0.00016899,2]
[394745370,1763926231735,-186.2305426,0.00016925,2]
[394745371,1763926231746,-1.54505055,0.00016949,2]
[394745372,1763926231759,-248.45494945,0.00016949,2]
[394745373,1763926231769,-300.0,0.00016998,2]
[394745374,1763926231779,-300.0,0.00016998,2]
[394745375,1763926231790,-1200.0,0.00016998,2]
[394745376,1763926231799,-1200.0,0.00016999,2]
[394745377,1763926231808,-550.0,0.00016999,2]
[394745378,1763926231818,-250.0,0.00017,2]
[394745379,1763926231828,-1831.54505055,0.00017,2]
[394745380,1763926231839,-1300.0,0.00017,2]
[394745381,1763926231859,-3109.40494945,0.00017,2]
[394745382,1763926231870,-571.71425871,0.00017,2]
[394745383,1763926231881,-645.86207247,0.00017,2]
[394745384,1763926231896,-371.86527032,0.00017,2]
[394745385,1763926231907,-47633.40493996,0.00017,2]
[394745386,1763926231917,-571.0,0.00018104,2]
[394745387,1763926231927,-195.0,0.00018524,2]
[394745388,1763926231936,-195.0,0.00018524,2]
[394745389,1763926231945,-420.0,0.00018566,2]
[394745390,1763926231954,-420.0,0.00018566,2]
[394745391,1763926231963,-195.0,0.00018589,2]
[394745392,1763926231973,-195.0,0.0001859,2]
[394745393,1763926231982,-300.0,0.0001859,2]
[394745394,1763926231992,-198.12310197,0.0001859,2]
[394745395,1763926232001,-250.0,0.0001859,2]
[394745397,1763926232010,-193.0,0.0001859,2]
[394745399,1763926232020,-1680.0,0.00018658,2]
[394745400,1763926232029,-31307.0,0.0002,7]
[394745402,1763926232039,-587.0,0.00020278,2]
[394745404,1763926232049,-390.0,0.00020278,2]
[394745406,1763926232058,-426.78462315,0.00020362,2]
[394745408,1763926232068,-1445.0,0.0002048,2]
[394745410,1763926232077,-823.0,0.00022148,2]
[394745412,1763926232086,-250.0,0.00022251,2]
[394745414,1763926232095,-1152.0,0.00024191,2]
[394745416,1763926232104,-4566.16,0.00024551,2]
[394745418,1763926232113,-1613.0,0.00026421,2]
[394745419,1763926232122,-168.49,0.00027025,2]
[394745420,1763926232132,-999.99,0.00027025,2]
[394745421,1763926232141,-9225.85,0.00027025,5]
[394745422,1763926232151,-192.5,0.00027025,2]
[394745423,1763926232160,-150.99,0.00027025,2]
[394745424,1763926232170,-150.99,0.00027025,2]
[394745425,1763926232179,-2759.74782242,0.00028,60]
[394745426,1763926232188,-160.0,0.00028,2]
[394745427,1763926232198,-215.84089335,0.00028,2]
[394745428,1763926232206,-209.3641883,0.00028218,2]
[394745429,1763926232215,-2255.0,0.00028298,120]
[394745430,1763926232224,-508.0,0.000285,2]
[394745431,1763926232234,-223.0,0.00028858,2]
[394745432,1763926232243,-18110.22,0.00029403,2]
[394745433,1763926232252,-1126.95592719,0.000295,7]
[394745434,1763926232261,-1000.0,0.00029878,2]
[394745435,1763926232270,-4206.37941018,0.000299,2]
[394745436,1763926232279,-234.77640338,0.0002999,2]
[394745437,1763926232288,-4670.10878486,0.0003,2]
[394745438,1763926232297,-19672.58886143,0.0003,2]
[394745439,1763926232306,-1798.22082971,0.0003,2]
[394745440,1763926232316,-161.29734571,0.0003,2]
[394745441,1763926232325,-1062.18735238,0.0003013,2]
[394745442,1763926232335,-13709.6458427,0.0003013,2]
[394745443,1763926232346,-627.35106341,0.0003013,2]
[394745444,1763926232355,-4871.28947433,0.0003013,2]
[394745445,1763926232382,-135.6891131,0.0003013,2]
[394745446,1763926232392,-199.63725482,0.0003013,2]
[394745447,1763926232402,-1015.14978845,0.0003013,2]
[394745451,1763926237598,-508.0,0.00028425,2]
[394745452,1763926237608,-196.48088595,0.0003013,2]
[394745453,1763926237617,-2415.10500617,0.0003013,2]
[394745454,1763926237628,-1811.80915,0.0003013,2]
[394745455,1763926237653,-3425.26222782,0.0003013,2]
[394745456,1763926237662,-200.0,0.0003013,2]
[394745457,1763926237671,-508.0,0.00030523,2]
[394745458,1763926237680,-1432.54314917,0.000307,2]
[394745459,1763926237689,-508.0,0.00030705,2]
[394745460,1763926237698,-2583.78747251,0.0003084,2]
[394745461,1763926237706,-445.2222505,0.00030947,2]
[394745462,1763926237717,-62.7777495,0.00030947,2]
[394745463,1763926237726,-1854.58635587,0.00031011,2]
[394745464,1763926237737,-2351.79305431,0.00031011,2]
[394745465,1763926237746,-508.0,0.00031076,2]
[394745466,1763926237755,-508.0,0.00031076,2]
[394745467,1763926237765,-195.30467266,0.000315,2]
[394745468,1763926237774,-150.0,0.000315,2]
[394745469,1763926237783,-166.66,0.00031984,30]
[394745470,1763926237792,-3424.40384536,0.00032,2]
[394745471,1763926237801,-4206.37941018,0.00032122,2]
[394745472,1763926237811,-884.60017838,0.000323,2]
[394745473,1763926237820,-250.0,0.0003249,2]
[394745474,1763926237829,-166.66,0.00032658,30]
[394745475,1763926237838,-4777.71067768,0.000328,2]
[394745476,1763926237849,-1541.48780782,0.00033,2]
[394745477,1763926237858,-151.9144073,0.00033,2]
[394745478,1763926237867,-4206.37941018,0.00033233,2]
[394745479,1763926237876,-166.66,0.00033331,30]
[394745480,1763926237886,-1198.48979588,0.000335,2]
[394745481,1763926237895,-166.66,0.00034004,30]
[394745482,1763926237904,-264.77845351,0.000341,2]
[394745483,1763926237913,-1000.0,0.00034113,2]
[394745484,1763926237922,-254.4036119,0.00034144,7]
[394745485,1763926237931,-500.0,0.00034144,7]
[394745486,1763926237941,-205.94545364,0.00034144,7]
[394745487,1763926237950,-485.70188486,0.00034144,7]
[394745488,1763926237960,-411.17811695,0.00034144,2]
[394745489,1763926237969,-500.0,0.00034144,7]
[394745491,1763926237978,-500.0,0.00034144,7]
[394745494,1763926237987,-500.0,0.00034144,7]
[394745496,1763926237997,-500.0,0.00034144,7]
[394745497,1763926238006,-500.0,0.00034144,7]
[394745499,1763926238015,-500.0,0.00034144,7]
[394745502,1763926238025,-500.0,0.00034144,7]
[394745504,1763926238035,-500.0,0.00034144,7]
[394745505,1763926238043,-500.0,0.00034144,7]
[394745507,1763926238052,-500.0,0.00034144,7]
[394745510,1763926238062,-500.0,0.00034144,7]
[394745511,1763926238072,-500.0,0.00034144,7]
[394745513,1763926238081,-500.0,0.00034144,7]
[394745515,1763926238090,-500.0,0.00034144,7]
[394745518,1763926238100,-500.0,0.00034144,7]
[394745520,1763926238110,-500.0,0.00034144,7]
[394745522,1763926238119,-500.0,0.00034144,7]
[394745524,1763926238130,-500.0,0.00034144,7]
[394745526,1763926238139,-500.0,0.00034144,7]
[394745528,1763926238149,-170.76643799,0.00034144,7]
[394745529,1763926238158,-500.0,0.00034144,7]
[394745531,1763926238167,-500.0,0.00034144,7]
[394745534,1763926238177,-500.0,0.00034144,7]
[394745535,1763926238186,-500.0,0.00034144,7]
[394745537,1763926238196,-500.0,0.00034144,7]
[394745539,1763926238205,-500.0,0.00034144,7]
[394745541,1763926238214,-500.0,0.00034144,7]
[394745543,1763926238224,-500.0,0.00034144,7]
[394745545,1763926238233,-500.0,0.00034144,7]
[394745547,1763926238243,-500.0,0.00034144,7]
[394745549,1763926238252,-500.0,0.00034144,7]
[394745552,1763926238262,-500.0,0.00034144,7]
[394745554,1763926238272,-500.0,0.00034144,7]
[394745556,1763926238281,-500.0,0.00034144,7]
[394745558,1763926238291,-500.0,0.00034144,7]
[394745560,1763926238300,-500.0,0.00034144,7]
[394745562,1763926238310,-500.0,0.00034144,7]
[394745564,1763926238319,-500.0,0.00034144,7]
[394745566,1763926238329,-760000.0,0.00034145,2]
[394745568,1763926238338,-273.48863548,0.00034193,2]
[394745569,1763926238353,-446.22,0.000342,2]
[394745571,1763926238363,-12987.68,0.00034245,2]
[394745574,1763926238373,-2766.162,0.00034293,38]
[394745575,1763926238383,-212.081,0.00034293,38]
[394745577,1763926238391,-4206.37941018,0.00034344,2]
[394745579,1763926238400,-1712.20190078,0.0003449,2]
[394745581,1763926238412,-150.0,0.00034511,2]
[394745583,1763926238422,-885.34,0.00034636,2]
[394745585,1763926238432,-166.66,0.00034678,30]
[394745587,1763926238441,-457.02634231,0.00034733,5]
[394745589,1763926238451,-500.0,0.00034733,5]
[394745591,1763926238461,-402.85222887,0.00035,2]
[394745593,1763926238471,-7259.81220287,0.00035,30]
[394745595,1763926238481,-264.77845344,0.00035071,2]
[394745597,1763926238492,-273.48863542,0.00035311,2]
[394745599,1763926238501,-166.66,0.00035351,30]
[394745601,1763926238511,-1000.0,0.00035393,2]
[394745603,1763926238520,-4206.37941018,0.00035456,2]
[394745605,1763926238530,-1085.1018,0.00035479,10]
[394745607,1763926238539,-6269.47719753,0.00035616,120]
[394745609,1763926238548,-153.0,0.00035707,2]
[394745611,1763926238558,-153.0,0.00035707,2]
[394745613,1763926238567,-153.0,0.00035707,2]
[394745615,1763926238576,-153.0,0.00035707,2]
[394745617,1763926238585,-153.0,0.00035707,2]
[394745619,1763926238595,-153.0,0.00035707,2]
[394745621,1763926238605,-153.0,0.00035707,2]
[394745623,1763926238614,-153.0,0.00035707,2]
[394745625,1763926238625,-153.0,0.00035708,2]
[394745627,1763926238635,-153.0,0.00035708,2]
[394745629,1763926238644,-153.0,0.0003571,2]
[394745631,1763926238653,-153.0,0.0003571,2]
[394745633,1763926238662,-153.0,0.0003571,2]
[394745635,1763926238672,-153.0,0.0003571,2]
[394745637,1763926238681,-153.0,0.0003571,2]
[394745639,1763926238691,-153.0,0.0003571,2]
[394745641,1763926238702,-153.0,0.0003571,2]
[394745643,1763926238711,-153.0,0.0003571,2]
[394745645,1763926238721,-153.0,0.0003571,2]
[394745647,1763926238731,-153.0,0.0003571,2]
[394745649,1763926238741,-153.0,0.00035711,2]
[394745651,1763926238751,-153.0,0.00035711,2]
[394745653,1763926238762,-153.0,0.00035713,2]
[394745655,1763926238771,-153.0,0.00035713,2]
[394745657,1763926238781,-153.0,0.00035713,2]
[394745659,1763926238791,-153.0,0.00035713,2]
[394745661,1763926238800,-153.0,0.00035713,2]
[394745663,1763926238813,-153.0,0.00035713,2]
[394745665,1763926238823,-153.0,0.00035713,2]
[394745667,1763926238832,-153.0,0.00035713,2]
[394745669,1763926238842,-153.0,0.00035713,2]
[394745671,1763926238851,-153.0,0.00035713,2]
[394745673,1763926238860,-153.0,0.00035713,2]
[394745675,1763926238870,-153.0,0.00035713,2]
[394745677,1763926238880,-153.0,0.00035713,2]
[394745679,1763926238889,-153.0,0.00035713,2]
[394745681,1763926238898,-153.0,0.00035713,2]
[394745683,1763926238908,-153.0,0.00035713,2]
[394745685,1763926238918,-153.0,0.00035713,2]
[394745686,1763926238927,-153.0,0.00035713,2]
[394745688,1763926238937,-153.0,0.00035713,2]
[394745690,1763926238947,-153.0,0.00035713,2]
[394745692,1763926238956,-153.0,0.00035713,2]
[394745694,1763926238965,-153.0,0.00035713,2]
[394745696,1763926238975,-153.0,0.00035713,2]
[394745698,1763926238984,-153.0,0.00035713,2]
[394745700,1763926238993,-153.0,0.00035713,2]
[394745702,1763926239004,-153.0,0.00035713,2]
[394745704,1763926239013,-153.0,0.00035713,2]
[394745706,1763926239023,-153.0,0.00035714,2]
[394745708,1763926239032,-153.0,0.00035714,2]
[394745710,1763926239042,-153.0,0.00035714,2]
[394745712,1763926239052,-153.0,0.00035714,2]
[394745714,1763926239061,-153.0,0.00035714,2]
[394745716,1763926239071,-153.0,0.00035714,2]
[394745718,1763926239082,-153.0,0.00035714,2]
[394745720,1763926239092,-153.0,0.00035714,2]
[394745722,1763926239103,-212.72268745,0.00036,2]
[394745724,1763926239113,-10737.97382393,0.00036,2]
[394745726,1763926239122,-264.77845344,0.00036043,2]
[394745728,1763926239132,-4566.16,0.00036332,2]
[394745730,1763926239141,-4206.37941018,0.00036567,2]
[394745732,1763926239151,-1000.0,0.00036672,2]
[394745734,1763926239160,-1592.08054665,0.000368,2]
[394745736,1763926239170,-1932.39330038,0.000368,2]
[394745738,1763926239179,-13969.05075542,0.0003691,2]
[394745740,1763926239188,-500.0,0.00036999,2]
[394745742,1763926239198,-2000.0,0.00037,2]
[394745744,1763926239208,-42036.17328675,0.00037,5]
[394745746,1763926239217,-163.73600225,0.00037,2]
[394745748,1763926239227,-1218.45664032,0.00037218,30]
[394745750,1763926239238,-822.0,0.00037219,2]
[394745752,1763926239248,-1601.0,0.00037219,2]
[394745754,1763926239257,-1256.0,0.00037219,2]
[394745756,1763926239268,-659.0,0.00037219,2]
[394745758,1763926239278,-908.0,0.00037219,2]
[394745760,1763926239288,-1192.0,0.00037219,2]
[394745763,1763926239298,-609.0,0.00037219,2]
[394745765,1763926239308,-3436.0,0.00037219,2]
[394745767,1763926239319,-576.0,0.00037219,2]
[394745769,1763926239329,-150.0,0.00037479,2]
[394745770,1763926239339,-4206.37941018,0.00037678,2]
[394745773,1763926239350,-150.55,0.00037688,2]
[394745775,1763926239359,-222.03419501,0.00037688,2]
[394745777,1763926239369,-150.0,0.00037699,2]
[394745779,1763926239378,-150.0,0.00037699,2]
[394745781,1763926239387,-154.58,0.00037699,2]
[394745783,1763926239396,-21367.668,0.00037708,2]
[394745785,1763926239407,-150.0,0.00037726,2]
[394745788,1763926239419,-150.0,0.00037726,2]
[394745790,1763926239428,-150.0,0.00037726,2]
[394745792,1763926239438,-150.0,0.00037726,2]
[394745794,1763926239447,-150.0,0.00037726,2]
[394745796,1763926239457,-150.0,0.00037726,2]
[394745798,1763926239466,-150.0,0.00037726,2]
[394745800,1763926239475,-10127.7258081,0.00037792,5]
[394745802,1763926239487,-2400.0,0.00037808,7]
[394745804,1763926239496,-1000.0,0.00037951,2]
[394745806,1763926239504,-885.34,0.00038061,2]
[394745808,1763926239514,-900.0,0.00038082,7]
[394745810,1763926239523,-500.0,0.00038082,7]
[394745812,1763926239532,-1000.0,0.000381,7]
[394745814,1763926239541,-217.83804072,0.0003812,2]
[394745816,1763926239550,-479.01,0.00038137,2]
[394745818,1763926239559,-2500.0,0.00038146,2]
[394745820,1763926239568,-1218.45664031,0.00038154,30]
[394745822,1763926239577,-5000.0,0.00038156,30]
[394745825,1763926239586,-160.55159976,0.0003817,15]
[394745828,1763926239595,-1880.43140857,0.00038173,2]
[394745830,1763926239605,-1000.0,0.000382,7]
[394745858,1763926239841,-150.55,0.00038236,2]
[394745861,1763926239866,-881.80918785,0.00038246,2]
[394745863,1763926239875,-64712.2772406,0.00038246,3]
[394745865,1763926239885,-500.0,0.00038255,8]
[394745867,1763926239894,-500.0,0.00038255,8]
[394745869,1763926239903,-500.0,0.00038255,8]
[394745871,1763926239912,-500.0,0.00038255,8]
[394745873,1763926239922,-500.0,0.00038255,7]
[394745875,1763926239931,-500.0,0.00038255,7]
[394745877,1763926239941,-500.0,0.00038255,7]
[394745879,1763926239951,-500.0,0.00038255,8]
[394745881,1763926239960,-500.0,0.00038255,8]
[394745883,1763926239969,-500.0,0.00038255,8]
[394745885,1763926239978,-500.0,0.00038255,8]
[394745887,1763926239987,-500.0,0.00038255,8]
[394745889,1763926239996,-500.0,0.00038255,8]
[394745891,1763926240005,-500.0,0.00038255,8]
[394745893,1763926240015,-500.0,0.00038255,8]
[394745895,1763926240023,-199.0,0.00038255,7]
[394745897,1763926240032,-500.0,0.00038255,8]
[394745899,1763926240042,-500.0,0.00038255,8]
[394745901,1763926240051,-500.0,0.00038255,8]
[394745903,1763926240060,-500.0,0.00038255,2]
[394745905,1763926240070,-500.0,0.00038255,2]
[394745907,1763926240079,-500.0,0.00038255,2]
[394745909,1763926240088,-500.0,0.00038255,2]
[394745911,1763926240098,-500.0,0.00038255,2]
[394745913,1763926240107,-500.0,0.00038255,2]
[394745915,1763926240116,-500.0,0.00038273,5]
[394745917,1763926240125,-150.55,0.00038346,2]
[394745919,1763926240135,-500.0,0.00038355,8]
[394745921,1763926240145,-500.0,0.00038355,7]
[394745924,1763926240155,-500.0,0.00038355,8]
[394745926,1763926240164,-500.0,0.00038355,8]
[394745928,1763926240173,-500.0,0.00038355,8]
[394745931,1763926240182,-500.0,0.00038355,8]
[394745932,1763926240193,-500.0,0.00038355,8]
[394745934,1763926240203,-500.0,0.00038355,8]
[394745936,1763926240212,-500.0,0.00038355,8]
[394745938,1763926240221,-500.0,0.00038355,8]
[394745940,1763926240230,-500.0,0.00038355,8]
[394745942,1763926240239,-397.95618295,0.00038355,8]
[394745944,1763926240248,-500.0,0.00038355,8]
[394745946,1763926240256,-500.0,0.00038355,8]
[394745948,1763926240266,-500.0,0.00038355,8]
[394745950,1763926240274,-500.0,0.00038355,8]
[394745952,1763926240284,-620.0,0.00038355,8]
[394745954,1763926240293,-500.0,0.00038355,8]
[394745956,1763926240302,-620.0,0.00038355,8]
[394745958,1763926240311,-500.0,0.00038355,8]
[394745960,1763926240320,-500.0,0.00038355,8]
[394745962,1763926240329,-500.0,0.00038355,8]
[394745964,1763926240338,-500.0,0.00038355,8]
[394745966,1763926240347,-500.0,0.00038355,8]
[394745968,1763926240356,-500.0,0.00038355,2]
[394745970,1763926240366,-500.0,0.00038355,2]
[394745972,1763926240375,-881.84,0.00038356,5]
[394745974,1763926240384,-300.0,0.00038356,8]
[394745976,1763926240392,-17155.6736964,0.00038356,2]
[394745978,1763926240401,-500.0,0.00038356,8]
[394745980,1763926240413,-500.0,0.00038356,8]
[394745981,1763926240422,-500.0,0.00038356,8]
[394745982,1763926240430,-2597.0126525,0.00038356,2]
[394745983,1763926240439,-156.741129,0.00038356,8]
[394745984,1763926240448,-485.716053,0.00038356,8]
[394745985,1763926240458,-326.206516,0.00038356,8]
[394745986,1763926240466,-579.296223,0.00038356,8]
[394745987,1763926240475,-6485.479096,0.00038356,2]
[394745988,1763926240484,-500.0,0.00038356,8]
[394745989,1763926240494,-500.0,0.00038356,8]
[394745990,1763926240503,-994.56,0.00038356,8]
[394745991,1763926240512,-500.0,0.00038356,8]
[394745992,1763926240521,-500.0,0.00038356,8]
[394745993,1763926240530,-500.0,0.00038356,8]
[394745994,1763926240539,-500.0,0.00038356,8]
[394745995,1763926240547,-646.81,0.00038356,8]
[394745996,1763926240556,-500.0,0.00038356,8]
[394745997,1763926240565,-500.0,0.00038356,8]
[394745999,1763926240574,-500.0,0.00038356,8]
[394746001,1763926240584,-521.37,0.00038356,8]
[394746003,1763926240592,-500.0,0.00038356,8]
[394746005,1763926240602,-624.47,0.00038356,8]
[394746007,1763926240610,-500.0,0.00038356,8]
[394746009,1763926240620,-500.0,0.00038356,8]
[394746011,1763926240629,-615.43,0.00038356,8]
[394746013,1763926240638,-500.0,0.00038356,8]
[394746015,1763926240648,-500.0,0.00038356,8]
[394746017,1763926240657,-417.04921427,0.00038356,8]
[394746019,1763926240667,-500.0,0.00038356,8]
[394746021,1763926240676,-500.0,0.00038356,8]
[394746023,1763926240685,-500.0,0.00038356,8]
[394746025,1763926240695,-663.21,0.00038356,8]
[394746027,1763926240704,-500.0,0.00038356,8]
[394746029,1763926240713,-500.0,0.00038356,8]
[394746031,1763926240722,-500.0,0.00038356,8]
[394746033,1763926240731,-500.0,0.00038356,8]
[394746035,1763926240740,-772.78,0.00038356,8]
[394746037,1763926240750,-500.0,0.00038356,8]
[394746039,1763926240759,-500.0,0.00038356,8]
[394746041,1763926240769,-500.0,0.00038356,8]
[394746043,1763926240778,-500.0,0.00038356,8]
[394746045,1763926240787,-500.0,0.00038356,8]
[394746047,1763926240796,-500.0,0.00038356,8]
[394746049,1763926240805,-500.0,0.00038356,8]
[394746051,1763926240815,-500.0,0.00038356,8]
[394746053,1763926240823,-541.0,0.00038356,8]
[394746055,1763926240832,-500.0,0.00038356,8]
[394746057,1763926240842,-930.02,0.00038356,8]
[394746059,1763926240855,-500.0,0.00038356,8]
[394746061,1763926240864,-500.0,0.00038356,8]
[394746063,1763926240873,-500.0,0.00038356,8]
[394746065,1763926240882,-500.0,0.00038356,8]
[394746067,1763926240892,-500.0,0.00038356,8]
[394746069,1763926240901,-500.0,0.00038356,8]
[394746071,1763926240910,-570.08,0.00038356,8]
[394746073,1763926240919,-500.0,0.00038356,8]
[394746075,1763926240928,-500.0,0.00038356,8]
[394746077,1763926240937,-500.0,0.00038356,8]
[394746079,1763926240946,-500.0,0.00038356,8]
[394746081,1763926240956,-588.32,0.00038356,8]
[394746083,1763926240965,-500.0,0.00038356,8]
[394746085,1763926240974,-500.0,0.00038356,8]
[394746087,1763926240983,-500.0,0.00038356,8]
[394746089,1763926240992,-831.55,0.00038356,8]
[394746091,1763926241001,-500.0,0.00038356,8]
[394746093,1763926241010,-500.0,0.00038356,8]
[394746095,1763926241019,-517.31973521,0.00038356,8]
[394746097,1763926241028,-500.0,0.00038356,8]
[394746099,1763926241038,-500.0,0.00038356,8]
[394746101,1763926241046,-500.0,0.00038356,8]
[394746103,1763926241055,-500.0,0.00038356,8]
[394746105,1763926241064,-500.0,0.00038356,8]
[394746107,1763926241074,-500.0,0.00038356,8]
[394746109,1763926241084,-500.0,0.00038356,8]
[394746111,1763926241094,-500.0,0.00038356,8]
[394746113,1763926241103,-500.0,0.00038356,8]
[394746115,1763926241112,-700.0,0.00038356,120]
[394746117,1763926241121,-500.0,0.00038356,8]
[394746119,1763926241131,-500.0,0.00038356,8]
[394746121,1763926241142,-500.0,0.00038356,8]
[394746123,1763926241151,-500.0,0.00038356,8]
[394746125,1763926241161,-500.0,0.00038356,8]
[394746127,1763926241170,-500.0,0.00038356,8]
[394746129,1763926241179,-500.0,0.00038356,8]
[394746131,1763926241188,-505.3719363,0.00038356,8]